Workbook

Sheet Dashboard
A1: Total Sent: | C1: ='Backing Sheet Data'!S2 -> 260418 | E1: Left process at stage 1: | H1: ='Backing Sheet Data'!T2 -> 119769 | J1: Left process at stage 2: | M1: ='Backing Sheet Data'!U2 -> 3611 | O1: Exited process: | R1: ='Backing Sheet Data'!V2 -> 51616 | T1: Settled: | V1: ='Backing Sheet Data'!W2 -> 3073 | X1: Remaining: | Z1: =C1-H1-M1-R1-V1 -> 82349
A3: Δ from last month: | C3: =VLOOKUP('Backing Sheet Data'!$B$2,tblELBackingData[],2,FALSE) -> 3786 | E3: Δ from last month: | H3: =VLOOKUP('Backing Sheet Data'!$B$2,tblELBackingData[],3,FALSE) -> 1504 | J3: Δ from last month: | M3: =VLOOKUP('Backing Sheet Data'!$B$2,tblELBackingData[],4,FALSE) -> 49 | O3: Δ from last month: | R3: =VLOOKUP('Backing Sheet Data'!$B$2,tblELBackingData[],5,FALSE) -> 796 | T3: Δ from last month: | V3: =VLOOKUP('Backing Sheet Data'!$B$2,tblELBackingData[],7,FALSE) -> 729 | X3: Δ from last month: | Z3: =C3-H3-M3-R3-V3 -> 708
A5: Left Process Breakdowns - Stage 1:
A7: Reason | H7: This Month | J7: Last Month | L7: Δ
A8: Liability Decision Timeout | H8: ='Backing Sheet Data'!D25 -> 66198 | J8: =H8-L8 -> 65110 | L8: ='Backing Sheet Data'!E25 -> 1088
A9: Other | H9: ='Backing Sheet Data'!F25 -> 53658 | J9: =H9-L9 -> 53242 | L9: ='Backing Sheet Data'!G25 -> 416
A10: Total | H10: =SUM(H8:I9) -> 119856 | J10: =SUM(J8:K9) -> 118352 | L10: =SUM(L8:M9) -> 1504
A11: Left Process Breakdowns - Stage 2:
A13: Reason | H13: This Month | J13: Last Month | L13: Δ
A14: Interim payment more than £1,000 not agreed: | H14: ='Backing Sheet Data'!H25 -> 61 | J14: =H14-L14 -> 61 | L14: ='Backing Sheet Data'!I25 -> 0
A15: Settlement pack repudiated: | H15: ='Backing Sheet Data'!J25 -> 44 | J15: =H15-L15 -> 43 | L15: ='Backing Sheet Data'!K25 -> 1
A16: Settlement pack timeout: | H16: ='Backing Sheet Data'!L25 -> 3509 | J16: 3461 | L16: ='Backing Sheet Data'!M25 -> 48
A17: No agreement; Court Proceedings pack: | H17: ='Backing Sheet Data'!N25 -> 3075 | J17: 3005 | L17: ='Backing Sheet Data'!O25 -> 70
A18: Total | H18: =SUM(H14:I17) -> 6689 | J18: =SUM(J14:K17) -> 6570 | L18: =SUM(L14:M17) -> 119

Sheet Backing Sheet Data
A1: Reporting date | B1: 2019-04-01
A2: Latest month | B2: =EDATE(B1,-1) -> 2019-03-01 | S2: =SUBTOTAL(9,tblELBackingData[CNFs Sent]) -> 260418 | T2: =SUBTOTAL(9,tblELBackingData[CNFs left at Stage 1]) -> 119769 | U2: =SUBTOTAL(9,tblELBackingData[Stage 2 Exit]) -> 3611 | V2: =SUBTOTAL(9,tblELBackingData[Exit process]) -> 51616 | W2: =SUBTOTAL(9,tblELBackingData[Court Pack]) -> 3073 | X2: =SUBTOTAL(9,tblELBackingData[Settled claims]) -> 38308 | Y2: =SUBTOTAL(9,tblELBackingData[General Damages]) -> 248959.27
R3: Period | S3: CNFs Sent | T3: CNFs left at Stage 1 | U3: Stage 2 Exit | V3: Exit process | W3: Court Pack | X3: Settled claims | Y3: General Damages | AA3: Period | AB3: Previous 12 months rolling sum
A4: Rolling 12 CNFs sent | D4: Court packs rolling 12 | R4: 2013-08-01 | S4: 207 | T4: 5 | U4: 0 | V4: 13 | W4: 0 | X4: 1 | Y4: 1500 | AA4: 2013-08-01
R5: 2013-09-01 | S5: 923 | T5: 53 | U5: 0 | V5: 54 | W5: 1 | X5: 2 | Y5: 2051 | AA5: 2013-09-01
A6: Period | B6: Rolling 12 Sent | D6: Row Labels | E6: Total Court Packs | G6: Row Labels | H6: Ave General Damages | R6: 2013-10-01 | S6: 1876 | T6: 321 | U6: 0 | V6: 134 | W6: 0 | X6: 16 | Y6: 1721.875 | AA6: 2013-10-01
A7: 2018-04-01 | B7: =VLOOKUP(A7,tblPrevious12[#All],2,FALSE) -> 46266 | D7: 2018-04-01 | E7: 77 | G7: 2018-04-01 | H7: 4176.212045 | R7: 2013-11-01 | S7: 2258 | T7: 633 | U7: 1 | V7: 159 | W7: 0 | X7: 29 | Y7: 2277.084482 | AA7: 2013-11-01
A8: 2018-05-01 | B8: =VLOOKUP(A8,tblPrevious12[#All],2,FALSE) -> 46046 | D8: 2018-05-01 | E8: 64 | G8: 2018-05-01 | H8: 4066.541996 | R8: 2013-12-01 | S8: 1997 | T8: 822 | U8: 6 | V8: 166 | W8: 0 | X8: 47 | Y8: 2127.134468 | AA8: 2013-12-01
A9: 2018-06-01 | B9: =VLOOKUP(A9,tblPrevious12[#All],2,FALSE) -> 45834 | D9: 2018-06-01 | E9: 104 | G9: 2018-06-01 | H9: 4359.973395 | R9: 2014-01-01 | S9: 3206 | T9: 1113 | U9: 5 | V9: 264 | W9: 4 | X9: 110 | Y9: 2256.937727 | AA9: 2014-01-01
A10: 2018-07-01 | B10: =VLOOKUP(A10,tblPrevious12[#All],2,FALSE) -> 46270 | D10: 2018-07-01 | E10: 76 | G10: 2018-07-01 | H10: 4312.502496 | R10: 2014-02-01 | S10: 3185 | T10: 1061 | U10: 10 | V10: 304 | W10: 2 | X10: 145 | Y10: 2444.028551 | AA10: 2014-02-01
A11: 2018-08-01 | B11: =VLOOKUP(A11,tblPrevious12[#All],2,FALSE) -> 46159 | D11: 2018-08-01 | E11: 90 | G11: 2018-08-01 | H11: 4206.621412 | R11: 2014-03-01 | S11: 3588 | T11: 1491 | U11: 16 | V11: 336 | W11: 1 | X11: 178 | Y11: 2542.023876 | AA11: 2014-03-01
A12: 2018-09-01 | B12: =VLOOKUP(A12,tblPrevious12[#All],2,FALSE) -> 46303 | D12: 2018-09-01 | E12: 65 | G12: 2018-09-01 | H12: 4283.004688 | R12: 2014-04-01 | S12: 3555 | T12: 1598 | U12: 23 | V12: 434 | W12: 8 | X12: 213 | Y12: 2705.480422 | AA12: 2014-04-01
A13: 2018-10-01 | B13: =VLOOKUP(A13,tblPrevious12[#All],2,FALSE) -> 46274 | D13: 2018-10-01 | E13: 78 | G13: 2018-10-01 | H13: 4338.249848 | R13: 2014-05-01 | S13: 3660 | T13: 1642 | U13: 27 | V13: 440 | W13: 5 | X13: 291 | Y13: 2969.232027 | AA13: 2014-05-01
A14: 2018-11-01 | B14: =VLOOKUP(A14,tblPrevious12[#All],2,FALSE) -> 46079 | D14: 2018-11-01 | E14: 73 | G14: 2018-11-01 | H14: 4075.42288 | R14: 2014-06-01 | S14: 3953 | T14: 1838 | U14: 36 | V14: 532 | W14: 5 | X14: 380 | Y14: 2919.278868 | AA14: 2014-06-01
A15: 2018-12-01 | B15: =VLOOKUP(A15,tblPrevious12[#All],2,FALSE) -> 46106 | D15: 2018-12-01 | E15: 73 | G15: 2018-12-01 | H15: 4212.378547 | R15: 2014-07-01 | S15: 4654 | T15: 2008 | U15: 39 | V15: 645 | W15: 10 | X15: 440 | Y15: 3054.562 | AA15: 2014-07-01 | AB15: =SUM(S4:S15) -> 33062
A16: 2019-01-01 | B16: =VLOOKUP(A16,tblPrevious12[#All],2,FALSE) -> 45657 | D16: 2019-01-01 | E16: 93 | G16: 2019-01-01 | H16: 4196.348283 | R16: 2014-08-01 | S16: 4045 | T16: 1903 | U16: 35 | V16: 619 | W16: 9 | X16: 407 | Y16: 3105.700147 | AA16: 2014-08-01 | AB16: =SUM(S5:S16) -> 36900
A17: 2019-02-01 | B17: =VLOOKUP(A17,tblPrevious12[#All],2,FALSE) -> 45420 | D17: 2019-02-01 | E17: 75 | G17: 2019-02-01 | H17: 4302.873157 | R17: 2014-09-01 | S17: 4587 | T17: 2145 | U17: 54 | V17: 705 | W17: 11 | X17: 481 | Y17: 3220.617484 | AA17: 2014-09-01 | AB17: 40564
A18: 2019-03-01 | B18: =VLOOKUP(A18,tblPrevious12[#All],2,FALSE) -> 45277 | D18: 2019-03-01 | E18: 70 | G18: 2019-03-01 | H18: 4504.75524 | R18: 2014-10-01 | S18: 5108 | T18: 2268 | U18: 61 | V18: 804 | W18: 15 | X18: 548 | Y18: 3327.281514 | AA18: 2014-10-01 | AB18: 43796
D19: Grand Total | E19: 938 | G19: Grand Total | H19: 51034.88399 | R19: 2014-11-01 | S19: 4332 | T19: 2102 | U19: 44 | V19: 730 | W19: 22 | X19: 566 | Y19: 3242.357314 | AA19: 2014-11-01 | AB19: 45870
R20: 2014-12-01 | S20: 3714 | T20: 2202 | U20: 62 | V20: 806 | W20: 10 | X20: 565 | Y20: 3324.729345 | AA20: 2014-12-01 | AB20: 47587
R21: 2015-01-01 | S21: 4526 | T21: 2034 | U21: 48 | V21: 778 | W21: 22 | X21: 606 | Y21: 3382.226699 | AA21: 2015-01-01 | AB21: 48907
R22: 2015-02-01 | S22: 4743 | T22: 1712 | U22: 41 | V22: 793 | W22: 20 | X22: 670 | Y22: 3301.269223 | AA22: 2015-02-01 | AB22: 50465
B23: =SUBTOTAL(9,B25:B38) -> 59153 | R23: 2015-03-01 | S23: 5058 | T23: 2421 | U23: 56 | V23: 920 | W23: 25 | X23: 792 | Y23: 3425.002739 | AA23: 2015-03-01 | AB23: 51935
A24: Exit Process Reason | B24: Total | D24: LDT | E24: This Month LDT | F24: Other Liability | G24: This Month Other Liability | H24: Interim Payment Not Agreed | I24: This Month Interim Payment Not Agreed | J24: Repudiated | K24: This Month Repudiated | L24: Timeout | M24: This Month Timeout | N24: Court Proceedings | O24: This Month Court Proceedings | R24: 2015-04-01 | S24: 4283 | T24: 2089 | U24: 52 | V24: 881 | W24: 22 | X24: 704 | Y24: 3453.663906 | AA24: 2015-04-01 | AB24: 52663
A25: Claim is too complex for process | B25: 542 | D25: 66198 | E25: 1088 | F25: 53658 | G25: 416 | H25: 61 | I25: 0 | J25: 44 | K25: 1 | L25: 3509 | M25: 48 | N25: 3075 | O25: 70 | R25: 2015-05-01 | S25: 4222 | T25: 2031 | U25: 58 | V25: 809 | W25: 25 | X25: 614 | Y25: 3457.909657 | AA25: 2015-05-01 | AB25: 53225
A26: Claim requires further investigation | B26: 20746 | R26: 2015-06-01 | S26: 4697 | T26: 2297 | U26: 72 | V26: 982 | W26: 43 | X26: 781 | Y26: 3544.529884 | AA26: 2015-06-01 | AB26: 53969
A27: Duplicated claim | B27: 5039 | R27: 2015-07-01 | S27: 5040 | T27: 2396 | U27: 61 | V27: 961 | W27: 37 | X27: 770 | Y27: 3533.73222 | AA27: 2015-07-01 | AB27: 54355
A28: Incomplete information provided on CNF | B28: 1315 | R28: 2015-08-01 | S28: 4286 | T28: 2113 | U28: 65 | V28: 938 | W28: 30 | X28: 720 | Y28: 3599.98575 | AA28: 2015-08-01 | AB28: 54596
A29: Interim payment for child claimant | B29: 28 | R29: 2015-09-01 | S29: 4606 | T29: 2356 | U29: 65 | V29: 964 | W29: 22 | X29: 718 | Y29: 3670.907423 | AA29: 2015-09-01 | AB29: 54615
A30: Interim Payment partial offer not accepted | B30: 28 | R30: 2015-10-01 | S30: 4505 | T30: 2220 | U30: 66 | V30: 859 | W30: 27 | X30: 714 | Y30: 3798.056442 | AA30: 2015-10-01 | AB30: 54012
A31: Interim Payment request not answered and/or paid on time | B31: 393 | R31: 2015-11-01 | S31: 4379 | T31: 2175 | U31: 73 | V31: 936 | W31: 41 | X31: 782 | Y31: 3849.727289 | AA31: 2015-11-01 | AB31: 54059
A32: Other | B32: 25068 | R32: 2015-12-01 | S32: 3436 | T32: 2128 | U32: 80 | V32: 912 | W32: 48 | X32: 715 | Y32: 3735.62516 | AA32: 2015-12-01 | AB32: 53781
A33: Stage 1 costs not paid on time | B33: 1573 | R33: 2016-01-01 | S33: 4004 | T33: 1969 | U33: 76 | V33: 892 | W33: 37 | X33: 632 | Y33: 3785.194667 | AA33: 2016-01-01 | AB33: 53259
A34: Value of claim below ú1,000 | B34: 272 | R34: 2016-02-01 | S34: 4284 | T34: 1715 | U34: 70 | V34: 819 | W34: 37 | X34: 697 | Y34: 3956.956011 | AA34: 2016-02-01 | AB34: 52800
A35: Value of claim exceeds the upper limit | B35: 2540 | R35: 2016-03-01 | S35: 4444 | T35: 2180 | U35: 74 | V35: 900 | W35: 35 | X35: 775 | Y35: 3939.095987 | AA35: 2016-03-01 | AB35: 52186
A36: Withdrawal of claim | B36: 1455 | R36: 2016-04-01 | S36: 4289 | T36: 2093 | U36: 93 | V36: 998 | W36: 39 | X36: 778 | Y36: 3994.207737 | AA36: 2016-04-01 | AB36: 52192
A37: Withdrawal of offer | B37: 154 | R37: 2016-05-01 | S37: 4109 | T37: 2022 | U37: 70 | V37: 868 | W37: 36 | X37: 706 | Y37: 3829.424093 | AA37: 2016-05-01 | AB37: 52079
R38: 2016-06-01 | S38: 3491 | T38: 2071 | U38: 104 | V38: 1019 | W38: 57 | X38: 700 | Y38: 4012.5146 | AA38: 2016-06-01 | AB38: 50873
R39: 2016-07-01 | S39: 3412 | T39: 1663 | U39: 86 | V39: 805 | W39: 51 | X39: 661 | Y39: 3978.009334 | AA39: 2016-07-01 | AB39: 49245
R40: 2016-08-01 | S40: 4289 | T40: 1290 | U40: 54 | V40: 595 | W40: 28 | X40: 525 | Y40: 4361.622838 | AA40: 2016-08-01 | AB40: 49248
R41: 2016-09-01 | S41: 4403 | T41: 2104 | U41: 98 | V41: 1002 | W41: 64 | X41: 641 | Y41: 4287.550733 | AA41: 2016-09-01 | AB41: 49045
R42: 2016-10-01 | S42: 4014 | T42: 1984 | U42: 56 | V42: 973 | W42: 57 | X42: 652 | Y42: 3817.960322 | AA42: 2016-10-01 | AB42: 48554
R43: 2016-11-01 | S43: 4248 | T43: 2112 | U43: 75 | V43: 936 | W43: 74 | X43: 676 | Y43: 4082.609053 | AA43: 2016-11-01 | AB43: 48423
R44: 2016-12-01 | S44: 3176 | T44: 1858 | U44: 71 | V44: 784 | W44: 61 | X44: 574 | Y44: 3893.909703 | AA44: 2016-12-01 | AB44: 48163
R45: 2017-01-01 | S45: 3993 | T45: 1800 | U45: 64 | V45: 915 | W45: 57 | X45: 666 | Y45: 4096.533438 | AA45: 2017-01-01 | AB45: 48152
R46: 2017-02-01 | S46: 4102 | T46: 1537 | U46: 72 | V46: 760 | W46: 63 | X46: 659 | Y46: 4069.978133 | AA46: 2017-02-01 | AB46: 47970
R47: 2017-03-01 | S47: 4546 | T47: 2134 | U47: 48 | V47: 1057 | W47: 69 | X47: 763 | Y47: 4015.210812 | AA47: 2017-03-01 | AB47: 48072
R48: 2017-04-01 | S48: 3367 | T48: 1640 | U48: 60 | V48: 723 | W48: 54 | X48: 617 | Y48: 4083.945591 | AA48: 2017-04-01 | AB48: 47150
R49: 2017-05-01 | S49: 4079 | T49: 1903 | U49: 57 | V49: 921 | W49: 63 | X49: 627 | Y49: 4107.943508 | AA49: 2017-05-01 | AB49: 47120
R50: 2017-06-01 | S50: 3973 | T50: 1934 | U50: 63 | V50: 950 | W50: 90 | X50: 628 | Y50: 4217.261082 | AA50: 2017-06-01 | AB50: 47602
R51: 2017-07-01 | S51: 3518 | T51: 1813 | U51: 52 | V51: 818 | W51: 47 | X51: 618 | Y51: 4173.323834 | AA51: 2017-07-01 | AB51: 47708
R52: 2017-08-01 | S52: 3964 | T52: 1707 | U52: 60 | V52: 870 | W52: 79 | X52: 661 | Y52: 4001.10708 | AA52: 2017-08-01 | AB52: 47383
R53: 2017-09-01 | S53: 3646 | T53: 1662 | U53: 57 | V53: 842 | W53: 95 | X53: 591 | Y53: 4158.863824 | AA53: 2017-09-01 | AB53: 46626
R54: 2017-10-01 | S54: 4163 | T54: 1787 | U54: 71 | V54: 949 | W54: 81 | X54: 691 | Y54: 4116.102633 | AA54: 2017-10-01 | AB54: 46775
R55: 2017-11-01 | S55: 4149 | T55: 1907 | U55: 63 | V55: 919 | W55: 81 | X55: 675 | Y55: 4377.742429 | AA55: 2017-11-01 | AB55: 46676
R56: 2017-12-01 | S56: 2747 | T56: 1680 | U56: 48 | V56: 749 | W56: 70 | X56: 475 | Y56: 4322.565726 | AA56: 2017-12-01 | AB56: 46247
R57: 2018-01-01 | S57: 4235 | T57: 1872 | U57: 38 | V57: 817 | W57: 86 | X57: 641 | Y57: 4332.001653 | AA57: 2018-01-01 | AB57: =SUM(S46:S57) -> 46489
R58: 2018-02-01 | S58: 3938 | T58: 1484 | U58: 34 | V58: 732 | W58: 79 | X58: 548 | Y58: 4215.580401 | AA58: 2018-02-01 | AB58: =SUM(S47:S58) -> 46325
R59: 2018-03-01 | S59: 3929 | T59: 1918 | U59: 54 | V59: 888 | W59: 80 | X59: 630 | Y59: 4155.211142 | AA59: 2018-03-01 | AB59: =SUM(S48:S59) -> 45708
R60: 2018-04-01 | S60: 3925 | T60: 1769 | U60: 66 | V60: 818 | W60: 77 | X60: 621 | Y60: 4176.212045 | AA60: 2018-04-01 | AB60: =SUM(S49:S60) -> 46266
R61: 2018-05-01 | S61: 3859 | T61: 1825 | U61: 61 | V61: 892 | W61: 64 | X61: 651 | Y61: 4066.541996 | AA61: 2018-05-01 | AB61: =SUM(S50:S61) -> 46046
R62: 2018-06-01 | S62: 3761 | T62: 1902 | U62: 43 | V62: 887 | W62: 104 | X62: 692 | Y62: 4359.973395 | AA62: 2018-06-01 | AB62: =SUM(S51:S62) -> 45834
R63: 2018-07-01 | S63: 3954 | T63: 1790 | U63: 60 | V63: 902 | W63: 76 | X63: 661 | Y63: 4312.502496 | AA63: 2018-07-01 | AB63: =SUM(S52:S63) -> 46270
R64: 2018-08-01 | S64: 3853 | T64: 1805 | U64: 53 | V64: 922 | W64: 90 | X64: 623 | Y64: 4206.621412 | AA64: 2018-08-01 | AB64: =SUM(S53:S64) -> 46159
R65: 2018-09-01 | S65: 3790 | T65: 1661 | U65: 48 | V65: 873 | W65: 65 | X65: 625 | Y65: 4283.004688 | AA65: 2018-09-01 | AB65: =SUM(S54:S65) -> 46303
R66: 2018-10-01 | S66: 4134 | T66: 1885 | U66: 68 | V66: 1006 | W66: 78 | X66: 660 | Y66: 4338.249848 | AA66: 2018-10-01 | AB66: =SUM(S55:S66) -> 46274
R67: 2018-11-01 | S67: 3954 | T67: 1841 | U67: 57 | V67: 880 | W67: 73 | X67: 684 | Y67: 4075.42288 | AA67: 2018-11-01 | AB67: =SUM(S56:S67) -> 46079
R68: 2018-12-01 | S68: 2774 | T68: 1635 | U68: 62 | V68: 746 | W68: 73 | X68: 537 | Y68: 4212.378547 | AA68: 2018-12-01 | AB68: =SUM(S57:S68) -> 46106
R69: 2019-01-01 | S69: 3786 | T69: 1790 | U69: 57 | V69: 857 | W69: 93 | X69: 705 | Y69: 4196.348283 | AA69: 2019-01-01 | AB69: =SUM(S58:S69) -> 45657
R70: 2019-02-01 | S70: 3701 | T70: 1346 | U70: 63 | V70: 658 | W70: 75 | X70: 608 | Y70: 4302.873157 | AA70: 2019-02-01 | AB70: =SUM(S59:S70) -> 45420
R71: 2019-03-01 | S71: 3786 | T71: 1504 | U71: 49 | V71: 796 | W71: 70 | X71: 729 | Y71: 4504.75524 | AA71: 2019-03-01 | AB71: =SUM(S60:S71) -> 45277

Sheet Year Calculations
A1: Period | B1: CNFs sent | C1: CNFs left at stage 1 | D1: Stage 2 exit | E1: Exit process | F1: Court pack | G1: Settled claims
A2: 2013-14 | B2: =SUM('Backing Sheet Data'!S4:S15) -> 33062 | C2: =SUM('Backing Sheet Data'!T4:T15) -> 12585 | D2: =SUM('Backing Sheet Data'!U4:U15) -> 163 | E2: =SUM('Backing Sheet Data'!V4:V15) -> 3481 | F2: =SUM('Backing Sheet Data'!W4:W15) -> 36 | G2: =SUM('Backing Sheet Data'!X4:X15) -> 1852
A3: 2014-15 | B3: =SUM('Backing Sheet Data'!S16:S27) -> 54355 | C3: =SUM('Backing Sheet Data'!T16:T27) -> 25600 | D3: =SUM('Backing Sheet Data'!U16:U27) -> 644 | E3: =SUM('Backing Sheet Data'!V16:V27) -> 9788 | F3: =SUM('Backing Sheet Data'!W16:W27) -> 261 | G3: =SUM('Backing Sheet Data'!X16:X27) -> 7504
A4: 2015-16 | B4: =SUM('Backing Sheet Data'!S28:S39) -> 49245 | C4: =SUM('Backing Sheet Data'!T28:T39) -> 24705 | D4: =SUM('Backing Sheet Data'!U28:U39) -> 922 | E4: =SUM('Backing Sheet Data'!V28:V39) -> 10910 | F4: =SUM('Backing Sheet Data'!W28:W39) -> 460 | G4: =SUM('Backing Sheet Data'!X28:X39) -> 8598
A5: 2016-17 | B5: =SUM('Backing Sheet Data'!S40:S51) -> 47708 | C5: =SUM('Backing Sheet Data'!T40:T51) -> 22109 | D5: =SUM('Backing Sheet Data'!U40:U51) -> 770 | E5: =SUM('Backing Sheet Data'!V40:V51) -> 10434 | F5: =SUM('Backing Sheet Data'!W40:W51) -> 727 | G5: =SUM('Backing Sheet Data'!X40:X51) -> 7646
A6: 2017-18 | B6: =SUM('Backing Sheet Data'!S52:S63) -> 46270 | C6: =SUM('Backing Sheet Data'!T52:T63) -> 21303 | D6: =SUM('Backing Sheet Data'!U52:U63) -> 655 | E6: =SUM('Backing Sheet Data'!V52:V63) -> 10265 | F6: =SUM('Backing Sheet Data'!W52:W63) -> 972 | G6: =SUM('Backing Sheet Data'!X52:X63) -> 7537
A7: 2018-19 | B7: =SUM('Backing Sheet Data'!S64:S71) -> 29778 | C7: =SUM('Backing Sheet Data'!T64:T71) -> 13467 | D7: =SUM('Backing Sheet Data'!U64:U71) -> 457 | E7: =SUM('Backing Sheet Data'!V64:V71) -> 6738 | F7: =SUM('Backing Sheet Data'!W64:W71) -> 617 | G7: =SUM('Backing Sheet Data'!X64:X71) -> 5171
A10: Update last period monthly!
